bitfinex/quotes_ETHUSD_20260216
["timestamp","ask_amount","ask_price","bid_price","bid_amount"]
[1771253676300,0.45722875,1975.7,1974.8,0.001]
[1771253684232,0.45722875,1975.7,1974.8,0.24428271]
[1771253685038,0.45722875,1975.7,1974.8,0.76428271]
[1771253689230,0.45722875,1975.7,1974.8,0.521]
[1771253690069,0.45722875,1975.7,1974.8,0.001]
[1771253690265,0.45097859,1975.6,1974.5,0.001]
[1771253690410,0.45097859,1975.6,1973.8,0.001]
[1771253690411,0.45097859,1975.4,1973.8,0.001]
[1771253690611,0.45097859,1975.2,1973.8,0.001]
[1771253691242,0.44730563,1975.0,1973.8,0.001]
[1771253691937,0.45097859,1974.8,1973.8,0.001]
[1771253692135,0.45097859,1974.6,1973.8,0.001]
[1771253692342,0.45097859,1974.4,1973.8,0.001]
[1771253694241,0.45097859,1973.6,1972.3,1.27856559]
[1771253694418,0.45097859,1973.4,1971.5,9.61129548]
[1771253694940,0.45097859,1973.4,1971.7,0.1024]
[1771253695144,0.45097859,1973.4,1972.0,0.24795567]
[1771253695513,0.45097859,1973.4,1971.9,9.61129548]
[1771253695755,0.45097859,1973.4,1971.8,1.432]
[1771253695913,0.45097859,1973.4,1971.8,1.67995567]
[1771253696530,0.45097859,1973.4,1971.9,0.24795567]
[1771253697560,0.45097859,1973.2,1971.8,0.52]
[1771253698157,0.45097859,1973.2,1971.9,0.24795567]
[1771253699520,0.45097859,1973.3,1972.1,0.24795567]
[1771253699733,0.45097859,1973.3,1972.1,0.76795567]
[1771253700014,0.45097859,1973.3,1972.1,0.52]
[1771253700241,0.45097859,1974.0,1972.2,9.85925115]
[1771253700445,0.45097859,1973.9,1972.3,0.24795567]
[1771253701051,0.45097859,1973.9,1971.9,0.1024]
[1771253701219,0.45097859,1973.9,1971.9,0.24795567]
[1771253701420,0.45097859,1973.7,1971.8,0.1024]
[1771253701719,0.45097859,1973.5,1971.7,0.52]
[1771253702445,0.45097859,1973.3,1971.8,0.24795567]
[1771253703155,0.45097859,1973.3,1971.7,0.52]
[1771253703344,0.45097859,1973.3,1971.8,0.24795567]
[1771253703761,0.45097859,1973.3,1971.7,0.52]
[1771253703956,0.45097859,1973.3,1972.2,0.001]
[1771253710155,1.433,1973.4,1972.0,0.001]
[1771253710156,0.45097859,1972.9,1972.0,0.001]
[1771253710369,0.45097859,1972.7,1972.0,0.001]
[1771253710558,0.45097859,1972.6,1972.0,0.001]
[1771253712250,0.45097859,1972.6,1971.2,0.913]
[1771253712451,0.45097859,1972.6,1971.4,0.24895567]
[1771253714207,0.45097859,1972.6,1971.5,0.24895567]
[1771253714789,0.52,1972.8,1971.5,0.24895567]
[1771253714790,1.39752941,1973.2,1971.8,0.24895567]
[1771253715187,0.48452941,1973.1,1971.8,0.24895567]
[1771253716694,0.48452941,1973.1,1971.9,0.001]
[1771253719307,0.48452941,1973.0,1971.9,0.001]
[1771253719728,0.0011,1973.2,1973.0,0.48452941]
[1771253719926,0.0011,1973.2,1972.3,0.24895567]
[1771253720722,0.0011,1973.3,1972.5,0.24895567]
[1771253721346,0.48452941,1974.4,1972.9,0.24895567]
[1771253722694,0.48452941,1974.7,1973.1,0.24785567]
[1771253722925,0.48452941,1974.7,1973.3,0.24785567]
[1771253723897,0.48452941,1974.7,1973.6,9.61129548]
[1771253724095,0.48452941,1974.7,1973.2,11.04429548]
[1771253724096,0.48452941,1975.0,1973.3,0.24785567]
[1771253724525,0.48452941,1974.8,1973.3,0.24785567]
[1771253724730,0.48452941,1974.7,1973.3,0.24785567]
[1771253725049,0.48452941,1974.7,1973.2,0.52]
[1771253725633,0.48452941,1974.7,1973.2,10.37915115]
[1771253725813,0.48452941,1974.6,1973.2,10.37915115]
[1771253726508,0.48452941,1974.6,1973.2,0.76785567]
[1771253727427,0.48452941,1974.6,1973.3,0.24785567]
[1771253727726,0.48452941,1974.6,1973.5,9.85915115]
[1771253728222,1.433,1974.7,1973.5,9.85915115]
[1771253728636,1.433,1974.7,1973.6,0.24785567]
[1771253729842,0.48452941,1974.9,1973.6,0.24785567]
[1771253729843,0.0011,1974.5,1973.6,0.24785567]
[1771253730413,0.0011,1974.5,1973.7,0.52]
[1771253731941,0.0011,1974.8,1974.0,0.24785567]
[1771253732236,0.48452941,1975.1,1973.7,0.24785567]
[1771253732531,0.48452941,1975.1,1973.7,0.76785567]
[1771253733034,0.48452941,1975.1,1973.7,0.52]
[1771253734535,0.48452941,1974.9,1973.7,0.76785567]
[1771253737432,0.48452941,1974.9,1973.8,0.24785567]
[1771253741766,1.00452941,1975.2,1974.2,0.24785567]
[1771253741940,1.00452941,1975.2,1974.2,0.76785567]
[1771253743174,0.0011,1974.8,1974.2,0.76785567]
[1771253743470,0.48562941,1974.8,1974.0,0.52]
[1771253756874,0.0011,1974.7,1974.1,0.001]
[1771253759187,0.0011,1974.8,1974.1,0.24885567]
[1771253759487,0.0011,1974.9,1974.2,0.24785567]
[1771253760773,0.5005525,1974.9,1974.1,0.001]
[1771253770595,0.5005525,1974.9,1974.0,0.001]
[1771253770784,0.5005525,1974.9,1974.1,0.001]
[1771253770986,0.4994525,1974.7,1974.1,0.001]
[1771253771176,0.4994525,1974.5,1974.1,0.001]
[1771253775987,0.48191819,1974.4,1974.1,0.001]
[1771253776375,0.48191819,1974.4,1974.0,0.001]
[1771253779001,0.48191819,1974.3,1972.9,0.24985567]
[1771253779308,0.48191819,1974.3,1973.0,0.001]
[1771253780638,0.48191819,1974.3,1973.0,0.25085567]
[1771253781328,0.48191819,1974.1,1973.0,0.25085567]
[1771253782014,0.48191819,1974.1,1973.0,9.12883412]
[1771253782335,0.52,1974.2,1973.1,0.24985567]
[1771253782698,0.52,1974.2,1974.1,0.001]
[1771253789831,0.9141,1974.8,1974.1,0.001]
[1771253789832,0.48191819,1974.7,1974.1,0.001]
[1771253790405,1.39601819,1974.8,1974.1,0.001]
[1771253790949,0.48301819,1974.8,1974.1,0.001]
[1771253795044,0.48301819,1974.7,1974.1,0.001]
[1771253795248,0.0011,1974.7,1974.1,0.001]
[1771253795743,0.48301819,1974.7,1974.1,0.001]
[1771253797254,0.0011,1974.7,1974.1,0.001]
[1771253798954,0.48301819,1974.7,1974.1,0.001]
[1771253799571,0.0011,1974.7,1974.1,0.001]
[1771253800644,0.48301819,1974.7,1974.1,0.001]
[1771253802639,0.0011,1974.7,1974.1,0.001]
[1771253804447,0.45452462,1974.7,1974.1,0.001]
[1771253807569,0.0011,1974.6,1974.1,0.001]
[1771253807768,0.47427633,1974.5,1974.1,0.001]
[1771253807994,0.47427633,1974.3,1973.8,0.001]
[1771253808145,0.47427633,1974.1,1973.8,0.001]
[1771253809443,0.47427633,1974.5,1973.8,0.001]
[1771253809770,0.47427633,1974.4,1973.8,0.001]
[1771253810148,0.99537633,1974.6,1973.8,0.001]
[1771253810453,0.0011,1974.6,1973.8,0.001]
[1771253810641,0.0011,1974.6,1973.8,0.25185567]
[1771253819005,0.0011,1974.7,1973.9,0.25085567]
[1771253820192,0.0011,1974.7,1973.9,0.25185567]
[1771253820385,0.0011,1974.5,1973.9,0.25185567]
[1771253821084,0.0011,1974.5,1973.9,0.001]
[1771253821784,0.47537633,1974.5,1973.9,0.001]
[1771253821983,0.0011,1974.6,1974.0,0.25085567]
[1771253823413,0.0011,1974.8,1974.2,0.25085567]
[1771253823586,0.0011,1975.1,1974.3,0.25085567]
[1771253824112,0.47427633,1975.5,1974.2,0.25085567]
[1771253824280,0.47427633,1975.5,1974.6,0.25085567]
[1771253824810,0.47427633,1975.5,1974.2,0.25085567]
[1771253825009,0.47427633,1975.3,1974.0,0.25085567]
[1771253825190,0.47427633,1975.2,1974.0,0.25085567]
[1771253827402,0.47427633,1975.4,1974.2,0.25085567]
[1771253827804,0.47427633,1975.4,1973.9,0.25185567]
[1771253832829,0.47427633,1975.4,1973.9,0.001]
[1771253833298,0.47427633,1975.4,1973.9,0.25185567]
[1771253833496,0.47427633,1975.4,1974.0,0.001]
[1771253833818,0.45579754,1975.2,1974.0,0.001]
[1771253834031,0.45579754,1975.0,1974.0,0.001]
[1771253838831,0.45579754,1975.0,1974.0,0.25185567]
[1771253839037,0.97579754,1974.9,1974.0,0.25185567]
[1771253839264,0.45579754,1974.8,1974.0,0.25185567]
[1771253840720,0.0011,1975.3,1974.0,0.25185567]
[1771253840721,0.52,1975.1,1974.0,0.25185567]
[1771253840931,0.97579754,1975.1,1974.0,0.25185567]
[1771253841635,0.52,1975.1,1974.0,0.25185567]
[1771253842133,0.45689754,1975.3,1974.0,0.25185567]
[1771253845524,0.45689754,1975.3,1974.1,0.001]
[1771253845726,0.45689754,1975.3,1974.2,0.25085567]
[1771253845932,0.45689754,1975.2,1974.2,0.25085567]
[1771253846129,0.45689754,1975.2,1974.1,0.001]
[1771253846326,0.45689754,1975.2,1974.1,0.521]
[1771253846936,0.45689754,1975.2,1974.1,0.77185567]
[1771253850010,0.45689754,1975.2,1974.2,0.25085567]
[1771253854170,0.45689754,1975.2,1974.1,0.001]
[1771253854377,0.45689754,1975.2,1974.1,0.25185567]
[1771253857371,0.45689754,1975.2,1974.1,0.001]
[1771253860650,0.45689754,1975.2,1974.1,0.25185567]
[1771253863156,0.45689754,1975.2,1974.0,0.32565567]
[1771253868909,0.45689754,1975.2,1974.1,0.001]
[1771253869183,0.5,1975.0,1974.1,0.001]
[1771253872493,0.0011,1975.1,1974.1,0.001]
[1771253872689,0.5011,1975.1,1974.1,0.001]
[1771253874169,0.5011,1975.1,1974.2,0.52]
[1771253880925,0.0011,1975.0,1974.2,0.52]
[1771253881079,0.5,1974.9,1974.2,0.52]
[1771253882402,0.0011,1975.0,1974.2,0.52]
[1771253883400,0.5011,1975.0,1974.2,0.52]
[1771253884705,0.0011,1975.1,1974.3,8.87639855]
[1771253886275,0.0011,1975.3,1974.4,0.912]
[1771253886501,0.0011,1975.4,1974.4,0.912]
[1771253887202,0.0011,1975.5,1974.7,8.87639855]
[1771253887502,0.0011,1975.5,1974.8,0.52]
[1771253889181,0.0011,1975.6,1974.8,0.52]
[1771253892517,3.042,1977.2,1975.5,8.87639855]
[1771253892806,1.4342,1976.5,1975.6,1.5344]
[1771253893777,0.0011,1975.6,1975.5,8.87639855]
[1771253893980,1.9342,1976.5,1975.2,0.1024]
[1771253893981,0.5,1976.4,1975.2,0.1024]
[1771253894179,0.5,1976.4,1975.3,0.52]
[1771253894401,0.0011,1975.8,1975.3,0.52]
[1771253894774,0.5,1976.3,1975.3,0.52]
[1771253894995,0.5,1976.3,1975.4,0.52]
[1771253895980,0.5,1976.5,1975.5,8.87639855]
[1771253896182,1.4342,1976.4,1975.5,8.87639855]
[1771253897388,0.5,1976.3,1975.4,0.52]
[1771253898282,1.4342,1976.4,1975.4,0.52]
[1771253898993,1.4342,1976.4,1975.5,8.87639855]
[1771253899213,1.4342,1976.4,1975.4,0.52]
[1771253899795,1.4342,1976.4,1975.5,8.87639855]
[1771253901214,1.4342,1976.4,1975.6,0.01285885]
[1771253901393,0.5,1976.9,1975.9,8.87639855]
[1771253901720,0.5,1976.9,1976.0,0.52]
[1771253902811,0.5,1976.9,1975.8,0.52]
[1771253905681,0.5,1976.7,1975.8,0.52]
[1771253908229,0.5,1976.7,1975.2,0.56477027]
[1771253908230,0.5,1976.7,1975.2,0.1024]
[1771253908392,0.5,1976.7,1975.5,0.52]
[1771253911289,0.5,1976.7,1975.5,9.39639855]
[1771253912220,0.5,1976.7,1975.5,0.52]
[1771253912399,0.5,1976.7,1975.5,9.39639855]
[1771253914516,0.0011,1976.8,1975.5,9.39639855]
[1771253914905,0.5011,1976.8,1975.5,9.39639855]
[1771253918125,0.5011,1976.8,1975.6,0.001]
[1771253919104,0.5011,1976.8,1975.6,0.913]
[1771253922127,0.5011,1976.8,1975.6,10.51156561]
[1771253923232,0.5011,1976.8,1975.6,0.913]
[1771253923405,0.5011,1976.8,1975.7,0.519]
[1771253926031,0.5011,1976.8,1975.8,0.519]
[1771253927931,0.5011,1976.8,1976.1,7.38421714]
[1771253930634,0.5,1976.6,1976.1,7.38421714]
[1771253935040,0.5,1976.6,1976.1,7.90321714]
[1771253936154,0.5,1976.6,1976.1,7.38421714]
[1771253936361,0.5,1976.4,1975.7,0.519]
[1771253936649,0.5,1976.4,1975.6,0.001]
[1771253937040,0.5,1976.4,1975.6,7.38521714]
[1771253937352,0.5,1976.4,1975.8,7.38421714]
[1771253937921,0.5,1976.3,1975.6,0.001]
[1771253938123,0.5,1976.3,1975.6,0.52]
[1771253938422,0.5,1976.3,1975.6,0.001]
[1771253939721,0.5,1976.3,1975.6,7.38521714]
[1771253941546,0.5,1976.3,1975.6,0.001]
[1771253942435,0.5,1976.3,1975.7,0.001]
[1771253942630,0.5,1976.3,1975.6,0.001]
[1771253942842,0.4995,1975.9,1975.6,0.001]
[1771253943027,0.4995,1976.3,1975.6,0.001]
[1771253943227,0.4995,1976.3,1975.6,7.38521714]
[1771253945255,0.5006,1976.5,1975.8,7.38421714]
[1771253945461,0.5006,1976.5,1975.7,0.519]
[1771253946254,0.5006,1976.5,1975.6,0.001]
[1771253948455,0.4995,1976.1,1975.6,0.001]
[1771253949652,0.4995,1976.4,1975.6,7.38521714]
[1771253949840,0.4995,1976.4,1975.8,7.38421714]
[1771253950026,0.4995,1976.4,1975.6,7.90621714]
[1771253950843,0.4995,1976.4,1975.6,0.521]
[1771253952258,0.4995,1976.4,1975.6,0.001]
[1771253955057,0.4995,1976.2,1975.7,0.001]
[1771253955360,0.4995,1976.0,1975.7,0.001]
[1771253956363,0.4995,1976.0,1975.6,0.001]
[1771253956364,7.88371714,1976.0,1975.6,0.001]
[1771253956665,0.499,1975.9,1975.6,0.001]
[1771253957437,0.499,1975.9,1975.4,0.001]
[1771253957438,0.499,1975.6,1975.4,0.001]
[1771253960271,0.52,1975.7,1975.4,0.001]
[1771253960749,1.019,1975.7,1975.4,0.001]
[1771253961472,0.52,1975.7,1975.4,0.001]
[1771253964100,1.019,1975.7,1975.4,0.001]
[1771253964574,0.499,1975.6,1975.4,0.001]
[1771253965163,0.52,1975.7,1975.4,0.001]
[1771253966472,1.432,1976.0,1975.5,0.002]
[1771253966676,1.432,1976.0,1975.4,7.38521714]
[1771253967095,1.432,1976.0,1975.4,7.38721714]
[1771253967400,1.432,1976.0,1975.5,0.002]
[1771253967608,1.931,1976.0,1975.4,0.001]
[1771253967907,1.432,1976.0,1975.5,0.001]
[1771253968107,0.0011,1975.9,1975.5,0.001]
[1771253970713,0.5001,1975.9,1975.5,0.001]
[1771253970912,0.5001,1975.9,1975.4,0.001]
[1771253970913,0.4985,1975.7,1975.4,0.001]
[1771253971090,0.4985,1975.5,1975.4,0.001]
[1771253971401,0.4996,1975.9,1975.4,0.001]
[1771253977112,0.4985,1975.7,1975.4,0.001]
[1771253977419,1.0185,1975.6,1975.4,0.001]
[1771253977791,0.4985,1975.5,1974.9,0.001]
[1771253977985,0.4985,1975.1,1974.8,0.001]
[1771253978211,0.52,1975.0,1974.8,0.001]
[1771253978609,0.4985,1975.5,1974.8,0.001]
[1771253978792,0.52,1975.4,1974.8,0.001]
[1771253979203,0.52,1975.4,1974.8,0.004]
[1771253981812,0.52,1975.4,1975.0,0.001]
[1771253982136,0.0011,1975.4,1975.0,0.001]
[1771253983635,0.0011,1975.4,1975.0,0.004]
[1771253983813,0.0011,1975.4,1975.1,0.003]
[1771253986165,0.0011,1975.4,1975.0,0.001]
[1771253987835,0.0011,1975.4,1975.1,0.003]
[1771253995254,0.0011,1975.3,1975.0,0.001]
[1771254000439,0.0011,1975.4,1975.1,0.003]
[1771254000658,0.0011,1975.6,1975.2,7.39436592]
[1771254000829,0.0011,1975.6,1975.3,0.003]
[1771254001031,0.0011,1976.0,1975.5,0.003]
[1771254001359,0.0011,1976.5,1975.7,7.39436592]
[1771254001360,0.4996,1976.4,1975.7,7.39436592]
[1771254001559,0.4996,1976.4,1975.6,0.003]
[1771254002656,0.4985,1976.3,1975.6,0.003]
[1771254003239,0.4996,1976.2,1975.1,0.003]
[1771254003441,0.4996,1976.2,1975.2,0.003]
[1771254003850,0.4996,1976.2,1975.1,0.52]
[1771254004089,0.4996,1976.2,1975.1,0.523]
[1771254004247,0.4996,1976.2,1975.2,0.003]
[1771254005076,0.0011,1976.2,1975.2,0.003]
[1771254005276,0.4996,1976.2,1975.2,0.003]
[1771254007286,0.4985,1976.0,1975.0,0.001]
[1771254007644,0.4985,1975.8,1975.0,0.001]
[1771254007852,0.4985,1975.6,1975.0,0.001]
[1771254009063,1.0185,1975.6,1975.0,0.001]
[1771254009879,0.52,1975.6,1975.0,0.001]
[1771254010071,0.0011,1976.1,1975.0,0.001]
[1771254010072,0.4985,1976.0,1975.1,0.003]
[1771254010307,0.5211,1976.1,1975.1,0.003]
[1771254010677,1.0196,1976.1,1975.1,0.003]
[1771254011187,0.4985,1976.0,1975.1,0.003]
[1771254011720,0.5211,1976.1,1975.1,0.003]
[1771254012673,0.0011,1976.4,1975.4,0.003]
[1771254013371,0.0011,1976.4,1975.5,0.003]
[1771254015695,0.0011,1976.5,1975.8,0.003]
[1771254018217,0.912,1977.6,1976.6,0.003]
[1771254018903,0.4985,1978.3,1976.6,0.003]
[1771254019116,0.4985,1978.1,1976.6,0.003]
[1771254019627,0.912,1978.2,1977.0,0.003]
[1771254019832,0.912,1978.2,1977.4,0.003]
[1771254020130,0.4985,1978.9,1977.4,0.003]
[1771254020304,0.4985,1979.4,1977.8,0.003]
[1771254020503,0.4985,1979.2,1977.8,0.003]
[1771254021234,0.912,1979.5,1978.5,0.003]
[1771254021529,0.4985,1980.4,1979.2,8.86952807]
[1771254021734,0.4985,1981.1,1979.3,0.522]
[1771254021898,0.4985,1980.5,1978.9,0.003]
[1771254022091,0.4985,1980.3,1978.9,0.003]
[1771254022290,1.4105,1980.3,1978.9,0.003]
[1771254022514,0.4985,1980.2,1978.9,0.003]
[1771254022727,0.4985,1980.0,1978.5,0.003]
[1771254022929,0.4985,1980.0,1978.5,0.522]
[1771254024723,0.4985,1980.0,1978.6,0.003]
[1771254025022,0.4985,1979.9,1978.5,0.519]
[1771254025828,9.229871,1979.8,1978.3,0.003]
[1771254026138,0.4985,1979.6,1978.3,0.519]
[1771254026334,1.4095,1979.6,1978.3,0.519]
[1771254026635,0.4985,1979.5,1978.3,0.519]
[1771254027057,0.4985,1979.5,1978.0,0.003]
[1771254027332,0.4985,1979.5,1978.1,0.003]
[1771254027625,1.9285,1979.8,1978.2,0.003]
[1771254028427,0.4985,1980.7,1979.3,0.003]
[1771254028595,0.4985,1980.7,1979.3,0.522]
[1771254028801,0.4985,1980.7,1979.4,0.003]
[1771254029937,0.4985,1981.2,1979.7,0.003]
[1771254030834,0.4985,1980.8,1979.2,0.003]
[1771254031008,0.4985,1980.6,1979.2,0.522]
[1771254031211,0.4985,1980.6,1979.3,0.003]
[1771254031401,0.911,1980.7,1979.6,8.86952807]
[1771254031620,0.911,1980.7,1979.7,0.003]
[1771254032151,1.4095,1980.7,1979.4,0.003]
[1771254032907,0.4985,1980.6,1979.2,8.86652807]
[1771254033123,0.4985,1980.6,1979.2,9.38552807]
[1771254033508,0.4985,1980.6,1979.2,9.38852807]
[1771254034337,0.4985,1980.6,1979.2,0.522]
[1771254035240,0.4985,1980.4,1979.2,0.519]
[1771254035929,0.519,1980.5,1979.2,0.519]
[1771254035930,0.519,1980.5,1979.3,0.003]
[1771254037017,0.4985,1980.4,1979.2,0.519]
[1771254037614,0.4985,1980.4,1979.2,0.522]
[1771254038118,0.519,1980.5,1979.3,0.003]
[1771254039425,0.4985,1980.4,1979.2,0.522]
[1771254039635,1.0175,1980.5,1979.3,0.003]
[1771254040136,0.519,1980.5,1979.3,0.003]
[1771254040518,0.911,1980.7,1979.6,0.003]
[1771254040714,0.911,1980.7,1979.5,8.86652807]
[1771254040715,0.911,1980.7,1979.7,0.522]
[1771254041036,0.911,1980.7,1979.8,0.519]
[1771254042644,0.4985,1980.6,1979.3,0.003]
[1771254042938,0.4985,1980.6,1979.5,0.519]
[1771254043651,0.911,1980.7,1979.6,0.003]
[1771254044035,0.911,1980.7,1979.7,0.003]
[1771254045249,0.0011,1981.1,1980.1,0.003]
[1771254045427,0.0011,1981.1,1980.2,0.519]
[1771254045611,0.0011,1980.6,1980.2,0.519]
[1771254046514,0.0011,1981.1,1980.2,0.522]
[1771254046714,0.0011,1980.9,1980.3,0.003]
[1771254048520,0.0011,1981.1,1980.3,0.003]
[1771254049961,0.0011,1981.1,1980.0,0.003]
[1771254050238,0.0011,1981.1,1980.1,0.518]
[1771254050613,0.4996,1981.1,1980.1,0.518]
[1771254051840,0.4996,1981.1,1979.8,0.518]
[1771254052643,0.4985,1981.0,1979.8,0.518]
[1771254053139,0.4985,1981.0,1979.7,0.518]
[1771254057646,0.4985,1981.0,1979.8,0.003]
[1771254058156,0.4985,1981.0,1979.8,0.001]
[1771254058337,0.4985,1980.8,1979.8,0.001]
[1771254059845,0.4985,1980.4,1979.8,0.001]
[1771254060528,1.0165,1980.4,1979.8,0.001]
[1771254060724,0.4985,1980.3,1979.8,0.001]
[1771254060931,0.4996,1980.9,1979.8,0.001]
[1771254061128,0.4996,1980.9,1979.9,0.003]
[1771254061338,0.0011,1980.9,1979.9,0.003]
[1771254061537,0.0011,1980.9,1980.2,0.003]
[1771254064833,0.4996,1980.9,1979.8,0.001]
[1771254065334,0.4996,1980.9,1979.8,0.004]
[1771254065542,0.0011,1980.9,1979.8,0.004]
[1771254065736,0.0011,1980.9,1979.9,0.003]
[1771254066532,0.0011,1980.9,1979.8,0.001]
[1771254066533,0.4996,1980.9,1979.8,0.001]
[1771254067162,0.4985,1980.7,1979.8,0.001]
[1771254068175,0.4985,1980.4,1979.8,0.001]
[1771254068395,0.518,1980.3,1979.8,0.001]
[1771254068747,0.4985,1980.2,1979.3,0.001]
[1771254068947,0.4985,1980.2,1979.2,0.001]
[1771254069644,0.498,1980.0,1979.2,0.001]
[1771254069843,0.498,1979.8,1979.2,0.001]
[1771254070068,0.1024,1979.9,1979.2,0.001]
[1771254070069,1.016,1979.7,1979.2,0.001]
[1771254070273,1.016,1980.1,1979.2,0.001]
[1771254070650,0.518,1980.1,1979.2,0.001]
[1771254071592,0.518,1980.1,1979.9,0.001]
[1771254073280,1.016,1980.1,1979.8,0.001]
[1771254073449,0.498,1980.0,1979.8,0.001]
[1771254074052,0.498,1980.0,1979.6,0.001]
[1771254075586,0.498,1980.0,1979.2,0.001]
[1771254076698,0.68545624,1980.8,1979.2,0.001]
[1771254076991,0.4975,1980.5,1979.2,0.006]
[1771254077301,0.519,1980.7,1979.2,0.006]
[1771254077458,0.519,1980.7,1979.4,0.005]
[1771254078288,0.519,1980.7,1979.5,0.524]
[1771254078459,0.9111,1980.8,1979.6,0.005]
[1771254079890,0.0041,1981.2,1980.6,0.005]
[1771254080068,0.0041,1981.2,1980.2,0.005]
[1771254080069,0.0011,1981.1,1980.2,0.005]
[1771254080661,0.003,1981.5,1980.9,0.005]
[1771254080884,0.003,1981.7,1981.0,0.005]
[1771254083184,0.003,1981.7,1980.8,0.518]
[1771254083638,0.4975,1983.4,1981.1,0.005]
[1771254083907,0.4975,1983.5,1982.0,0.005]
[1771254084128,0.4975,1983.3,1981.6,0.005]
[1771254084280,0.4975,1982.9,1981.4,0.91]
[1771254084478,0.4975,1982.9,1981.4,1.428]
[1771254084783,0.0011,1981.7,1981.4,1.433]
[1771254084983,0.4975,1982.9,1981.4,1.433]
[1771254085214,0.4975,1982.9,1981.3,0.518]
[1771254085215,0.0011,1981.9,1981.3,0.518]
[1771254086786,0.0011,1981.9,1981.1,0.91]
[1771254087881,0.0011,1981.9,1981.1,0.915]
[1771254088683,0.4975,1982.7,1981.2,0.005]
[1771254088903,0.4975,1982.7,1981.2,0.518]
[1771254089310,0.4975,1982.5,1981.2,0.518]
[1771254090108,0.4975,1982.5,1980.9,0.005]
[1771254090307,0.4975,1982.5,1981.0,0.518]
[1771254090611,0.4975,1982.5,1981.0,0.523]
[1771254091521,0.4975,1982.4,1981.0,0.523]
[1771254091749,0.4975,1982.4,1981.1,0.518]
[1771254092017,0.4975,1982.4,1981.0,0.518]
[1771254092919,0.4975,1982.2,1980.6,0.005]
[1771254093224,0.4975,1982.1,1980.6,1.432]
[1771254093387,0.4975,1982.1,1980.6,0.005]
[1771254093593,0.518,1982.2,1980.6,0.005]
[1771254093820,0.1024,1982.8,1981.0,0.005]
[1771254093821,0.909,1982.6,1981.0,0.005]
[1771254093987,0.909,1982.6,1981.2,0.005]
[1771254094183,0.909,1982.6,1981.2,0.523]
[1771254094534,0.909,1982.6,1981.4,0.005]
[1771254095016,1.4065,1983.5,1981.8,0.005]
[1771254095310,1.4065,1983.5,1982.0,0.005]
[1771254095311,0.909,1983.5,1982.0,0.005]
[1771254095516,0.909,1983.5,1982.1,9.55992383]
[1771254095816,0.909,1983.5,1982.2,0.005]
[1771254096388,0.909,1983.5,1982.2,0.523]
[1771254097197,0.0011,1982.5,1982.2,0.523]
[1771254097497,0.4975,1983.4,1982.0,0.909]
[1771254097821,0.4975,1983.2,1981.9,0.518]
[1771254098038,0.0011,1982.6,1981.9,0.518]
[1771254098235,0.0011,1982.6,1981.8,0.518]
[1771254098741,0.0011,1982.6,1981.8,0.523]
[1771254098953,0.0011,1982.6,1981.9,0.005]
[1771254099363,0.0011,1982.8,1981.9,0.005]
[1771254099631,0.0011,1982.8,1982.0,0.005]
[1771254100711,0.0011,1982.8,1981.7,0.005]
[1771254100917,0.0011,1982.8,1981.8,1.432]
[1771254101125,0.0011,1982.8,1981.9,0.005]
[1771254101510,0.0011,1982.8,1982.0,0.518]
[1771254102209,0.0011,1982.8,1981.9,0.518]
[1771254102825,0.0011,1982.8,1981.5,0.005]
[1771254103034,0.0011,1982.8,1981.7,0.518]
[1771254103916,0.4986,1982.8,1981.7,0.518]
[1771254104252,0.4986,1982.8,1981.7,0.34852219]
[1771254104733,0.4975,1982.6,1981.6,0.909]
[1771254105232,0.4986,1982.8,1981.6,0.909]
[1771254110109,0.4975,1982.6,1981.6,0.909]
[1771254113149,0.4975,1982.5,1981.3,0.001]
[1771254113315,0.518,1982.5,1981.3,0.006]
[1771254114266,0.909,1982.6,1981.3,0.006]
[1771254115928,0.909,1982.6,1981.4,0.005]
[1771254116123,0.909,1982.6,1981.5,0.523]
[1771254117946,0.0011,1982.7,1981.8,0.005]
[1771254119146,0.0011,1982.7,1981.6,0.909]
[1771254119357,0.0011,1982.7,1981.5,0.005]
[1771254119518,0.0011,1982.7,1981.7,0.518]
[1771254119725,0.4986,1982.7,1981.7,0.518]
[1771254119939,0.4986,1982.7,1981.3,0.006]
[1771254120142,0.4986,1982.7,1981.3,0.524]
[1771254120349,0.4986,1982.7,1981.4,0.005]
[1771254120752,0.4986,1982.7,1981.3,0.519]
[1771254121045,0.0011,1982.7,1981.4,0.005]
[1771254121857,0.0011,1982.7,1981.8,0.005]
[1771254122021,0.0011,1982.7,1981.9,0.523]
[1771254122560,0.4975,1983.4,1981.9,0.523]
[1771254122561,0.4975,1984.6,1982.8,0.005]
[1771254122720,1.26505652,1984.7,1983.3,8.81488425]
[1771254122922,0.4975,1985.5,1983.8,0.005]
[1771254123118,0.4975,1985.4,1983.9,0.518]
[1771254123328,1.9245,1985.8,1984.2,0.005]
[1771254123554,0.1332454,1986.1,1985.0,0.005]
[1771254123751,0.1332454,1986.1,1984.5,0.18685624]